bitfinex-derivatives/quotes_ETHF0:USTF0_20240930
["timestamp","ask_amount","ask_price","bid_price","bid_amount"]
[1727661204881,3.51285,2621.8,2621.4,0.3051]
[1727661205082,3.51285,2621.8,2621.3,0.3051]
[1727661205283,0.30507,2621.7,2621.3,0.3051]
[1727661205483,3.51286,2621.8,2621.4,0.30509]
[1727661205685,3.2078,2621.8,2621.3,0.3051]
[1727661205886,3.2078,2621.8,2621.1,3.2078]
[1727661206086,3.2078,2621.8,2621.5,0.30508]
[1727661206287,3.51286,2621.8,2621.5,0.30508]
[1727661206988,0.30508,2621.6,2621.3,0.30511]
[1727661207187,3.2078,2621.8,2621.1,3.2078]
[1727661207383,3.51286,2621.8,2621.5,0.30508]
[1727661207584,3.2078,2621.8,2621.6,0.30507]
[1727661207884,3.2078,2621.8,2621.5,0.30508]
[1727661208080,3.2078,2621.8,2621.6,0.30507]
[1727661208286,0.70655,2621.9,2621.6,0.30507]
[1727661208486,3.2078,2621.8,2621.6,0.30507]
[1727661208697,3.2078,2621.8,2621.2,4.18979108]
[1727661208994,3.2078,2621.8,2621.6,0.30507]
[1727661209685,3.51286,2621.8,2621.5,0.30508]
[1727661209889,3.2078,2621.8,2621.2,4.18979108]
[1727661210199,3.51286,2621.8,2621.4,0.30509]
[1727661210385,3.51286,2621.8,2621.5,0.30508]
[1727661210591,0.30507,2621.7,2621.4,0.30509]
[1727661210788,3.51286,2621.8,2621.5,0.30509]
[1727661211184,3.2078,2621.8,2621.2,4.18979108]
[1727661211390,3.2078,2621.8,2621.6,0.30507]
[1727661212697,3.2078,2621.8,2621.7,0.30506]
[1727661212901,0.4015,2621.9,2621.7,0.30506]
[1727661213199,3.2078,2622.1,2621.4,3.97055]
[1727661213401,3.2078,2622.1,2621.2,4.18979108]
[1727661213402,0.3911,2622.6,2621.9,0.76261]
[1727661213587,0.3911,2622.6,2622.5,0.30497]
[1727661213792,0.3911,2622.6,2622.1,3.2078]
[1727661213988,0.3911,2622.6,2622.5,0.30497]
[1727661214194,3.88413,2622.9,2622.6,0.30496]
[1727661214696,3.88413,2622.9,2622.1,3.2078]
[1727661214697,0.30494,2622.8,2622.4,0.30498]
[1727661214889,3.5792,2622.9,2622.1,3.2078]
[1727661215097,3.2078,2622.9,2622.8,0.30494]
[1727661215896,3.2078,2623.3,2623.1,0.3049]
[1727661216196,3.2078,2623.3,2622.7,3.2078]
[1727661216197,3.2078,2623.3,2623.2,0.30489]
[1727661216395,3.2078,2623.3,2622.8,0.3885]
[1727661216592,3.2078,2623.3,2623.2,0.30489]
[1727661216791,3.2078,2623.3,2622.8,4.41256586]
[1727661217192,3.2078,2623.3,2623.2,0.30489]
[1727661217592,3.2078,2623.3,2623.2,4.11689]
[1727661218299,3.5973,2623.9,2623.4,0.30486]
[1727661218506,0.3895,2623.9,2623.3,3.2078]
[1727661218700,0.30482,2623.8,2623.3,3.51267]
[1727661219193,0.69432,2623.9,2623.4,0.30486]
[1727661219395,0.69432,2623.9,2623.3,3.2078]
[1727661219396,3.9789,2624.2,2623.3,3.2078]
[1727661219595,0.30479,2624.1,2623.5,4.44521224]
[1727661219810,4.28368,2624.2,2623.5,4.14036224]
[1727661220098,4.28368,2624.2,2623.4,4.14036224]
[1727661220099,3.5938,2624.2,2624.0,0.30479]
[1727661220299,0.386,2624.2,2624.0,0.30479]
[1727661220500,3.2078,2624.7,2623.6,3.2078]
[1727661220501,0.30474,2624.6,2623.6,3.2078]
[1727661220704,3.2078,2624.7,2623.6,3.2078]
[1727661220705,0.30475,2624.5,2623.6,3.2078]
[1727661220889,0.30475,2624.5,2623.7,5.92396812]
[1727661221094,0.30473,2624.6,2624.1,0.30478]
[1727661221296,3.2078,2624.7,2624.0,0.30479]
[1727661221498,0.30473,2624.6,2624.1,0.30478]
[1727661222005,3.2078,2624.7,2624.0,3.2078]
[1727661222594,3.51252,2624.7,2624.1,0.30479]
[1727661222792,3.51252,2624.7,2624.0,3.2078]
[1727661222793,3.2078,2624.7,2624.0,3.2078]
[1727661223000,3.2078,2624.7,2623.5,0.4065]
[1727661223001,3.2078,2624.1,2623.5,0.4065]
[1727661223196,3.2078,2624.1,2623.8,0.30481]
[1727661223700,3.2078,2624.1,2623.7,0.30482]
[1727661224097,3.2078,2624.1,2623.5,0.4065]
[1727661224303,3.2078,2624.1,2623.8,0.30481]
[1727661224507,3.2078,2624.1,2623.5,0.30485]
[1727661224508,0.3048,2624.0,2623.5,0.30485]
[1727661224708,0.7934,2624.0,2623.8,0.30481]
[1727661224908,0.3954,2624.0,2623.9,0.30481]
[1727661225612,3.2078,2624.4,2624.1,0.30478]
[1727661225797,3.2078,2624.4,2624.0,0.30479]
[1727661226413,0.3782,2624.6,2623.8,3.2078]
[1727661226610,0.3782,2624.6,2624.1,0.30478]
[1727661226905,3.51256,2624.4,2623.9,0.3048]
[1727661227499,3.2078,2624.4,2623.8,3.2078]
[1727661227808,3.2078,2624.4,2624.0,0.30479]
[1727661228012,3.2078,2624.4,2624.1,0.30478]
[1727661228413,0.3782,2624.6,2624.1,0.30478]
[1727661228414,0.68293,2624.6,2624.1,0.30478]
[1727661228712,0.68293,2624.6,2623.8,3.2078]
[1727661228913,0.68293,2624.6,2624.2,0.30477]
[1727661229108,0.3782,2624.6,2624.0,0.3048]
[1727661229303,0.3782,2624.6,2623.9,4.28713379]
[1727661229504,0.3782,2624.6,2624.3,0.30476]
[1727661229705,0.3782,2624.6,2624.2,0.30477]
[1727661229908,0.3782,2624.6,2624.3,0.30475]
[1727661230206,0.3782,2624.6,2624.4,0.30474]
[1727661230405,0.3782,2624.6,2624.1,3.2078]
[1727661230607,0.3782,2624.6,2624.3,0.30475]
[1727661230807,0.3782,2624.6,2624.4,0.30475]
[1727661231100,0.3782,2624.6,2624.1,3.2078]
[1727661231418,0.3782,2624.6,2624.4,0.30474]
[1727661231620,0.3782,2624.6,2624.3,0.30476]
[1727661231805,0.3782,2624.6,2624.4,0.30475]
[1727661232112,0.3782,2624.6,2624.1,3.2078]
[1727661232319,0.3782,2624.6,2624.4,0.30475]
[1727661232616,3.6058,2624.7,2624.1,3.2078]
[1727661232816,3.2078,2624.7,2624.1,3.2078]
[1727661233009,3.2078,2624.7,2624.5,0.30473]
[1727661233405,3.51252,2624.7,2624.2,0.30477]
[1727661233603,3.2078,2624.7,2624.4,0.30475]
[1727661234011,3.2078,2624.7,2624.1,5.5878]
[1727661234207,0.30474,2624.6,2624.2,0.30477]
[1727661234611,0.30474,2624.5,2624.2,0.30477]
[1727661234811,3.51252,2624.7,2624.3,0.30475]
[1727661235213,3.2078,2624.7,2624.1,5.5878]
[1727661235413,3.51252,2624.7,2624.3,0.30476]
[1727661235714,3.2078,2624.7,2624.4,0.30474]
[1727661235921,0.30473,2624.6,2624.2,0.30477]
[1727661236220,0.30483,2623.7,2623.1,3.2078]
[1727661236416,3.2078,2623.6,2623.1,3.2078]
[1727661236819,3.2078,2623.6,2623.3,0.30488]
[1727661237213,3.2078,2623.6,2623.3,0.30487]
[1727661237408,0.3912,2624.1,2623.4,13.38871412]
[1727661237610,3.89434,2624.5,2624.1,0.30478]
[1727661237818,3.89434,2624.5,2623.9,2.38]
[1727661237819,3.5896,2624.5,2623.9,2.38]
[1727661238019,3.5896,2624.5,2624.2,0.30477]
[1727661238318,0.30476,2624.4,2624.0,0.30479]
[1727661238817,3.5896,2624.5,2623.8,0.3856]
[1727661239131,3.5896,2624.5,2624.1,0.30478]
[1727661239132,3.89434,2624.5,2624.1,0.30478]
[1727661239520,3.5896,2624.5,2623.9,0.30481]
[1727661239715,3.2078,2624.5,2624.2,0.30477]
[1727661240020,0.30477,2624.3,2623.9,0.3048]
[1727661240218,3.2078,2624.2,2623.8,0.3856]
[1727661240627,3.2078,2624.2,2624.0,0.30479]
[1727661241925,3.2078,2624.2,2623.8,0.3856]
[1727661242222,3.2078,2624.2,2624.0,0.3048]
[1727661242418,3.2078,2624.2,2623.8,0.3856]
[1727661243023,3.2078,2624.2,2624.0,0.30479]
[1727661243319,3.2078,2624.2,2623.8,0.3856]
[1727661243626,3.2078,2624.2,2624.0,0.3048]
[1727661243922,3.2078,2624.2,2623.7,5.5878]
[1727661244222,3.2078,2624.2,2624.1,0.30479]
[1727661244423,3.2078,2624.2,2623.8,4.23936658]
[1727661244618,3.2078,2624.2,2624.1,0.30479]
[1727661245821,7.32298,2624.2,2623.8,4.54417658]
[1727661246019,3.2078,2624.2,2623.9,0.30481]
[1727661246724,3.2078,2624.2,2624.1,0.30479]
[1727661247327,3.2078,2624.5,2624.1,2.38]
[1727661247519,3.2078,2624.5,2624.4,0.30475]
[1727661247719,3.2078,2624.5,2624.2,0.30477]
[1727661247924,3.2078,2624.5,2624.3,0.30476]
[1727661248119,3.2078,2624.5,2624.4,0.30475]
[1727661248429,3.2078,2624.5,2624.3,0.30476]
[1727661248621,3.2078,2624.5,2624.1,2.38]
[1727661248822,3.2078,2624.5,2624.3,0.30476]
[1727661249022,3.2078,2624.5,2624.1,2.38]
[1727661249218,3.2078,2624.5,2624.3,0.30476]
[1727661249421,3.2078,2624.5,2624.4,0.30475]
[1727661250427,5.02153065,2624.8,2624.2,3.6064]
[1727661250727,5.02153065,2624.8,2624.2,7.9150149]
[1727661250919,5.32624065,2624.8,2624.5,0.30474]
[1727661251320,1.74745065,2624.7,2624.3,0.30476]
[1727661251526,1.44273065,2624.7,2624.2,3.2078]
[1727661251721,1.44273065,2624.7,2624.6,0.30473]
[1727661251926,1.44273065,2624.9,2624.8,0.3047]
[1727661252125,5.13144087,2625.1,2624.8,0.3047]
[1727661252126,1.44273065,2625.1,2624.8,7.0174]
[1727661252331,1.44273065,2625.4,2625.0,2.38]
[1727661252626,1.44273065,2625.4,2625.1,3.2078]
[1727661252827,1.44273065,2625.2,2624.7,0.3986]
[1727661253023,1.44273065,2625.2,2625.0,0.30468]
[1727661253220,1.44273065,2625.1,2624.8,0.3047]
[1727661253817,1.74740065,2625.1,2624.7,0.70331]
[1727661254127,1.44273065,2625.0,2624.8,0.3047]
[1727661254329,1.44273065,2625.0,2624.6,3.2078]
[1727661254531,1.44273065,2624.9,2624.7,0.30471]
[1727661254830,1.44273065,2624.9,2624.6,3.2078]
[1727661255029,1.44273065,2624.9,2624.8,0.3047]
[1727661255228,1.92364087,2625.0,2624.6,3.2078]
[1727661255524,1.92364087,2625.0,2624.9,0.30469]
[1727661255933,1.92364087,2625.1,2624.9,0.30469]
[1727661256235,2.77855109,2625.2,2625.0,0.30468]
[1727661256439,1.94153757,2625.1,2624.6,5.5878]
[1727661256626,1.45612034,2624.9,2624.7,4.05363293]
[1727661256827,1.45612034,2624.9,2624.8,0.3047]
[1727661257231,1.94153757,2625.0,2624.7,4.05363293]
[1727661257424,1.4574359,2624.8,2624.7,4.35835293]
[1727661257921,1.4574359,2624.8,2624.7,8.16795293]
[1727661258123,1.4574359,2625.0,2624.7,14.23873293]
[1727661258326,3.2078,2625.3,2624.7,4.42913293]
[1727661258526,0.30467,2625.2,2624.8,0.3047]
[1727661258731,1.7620959,2625.2,2624.8,0.3047]
[1727661259033,1.7620959,2625.2,2624.3,0.4066]
[1727661259034,0.30473,2624.6,2624.2,3.51256]
[1727661259236,3.2078,2624.6,2624.0,0.3867]
[1727661259429,3.2078,2624.6,2624.2,0.30477]
[1727661259430,0.30474,2624.5,2624.2,0.30477]
[1727661259631,1.7621759,2624.5,2624.2,0.30477]
[1727661259935,3.2078,2624.3,2623.2,3.2078]
[1727661260130,8.13193757,2624.4,2623.6,0.30484]
[1727661260131,1.45996038,2623.8,2623.6,0.30484]
[1727661260324,1.45996038,2623.7,2623.4,0.30486]
[1727661260531,0.30482,2623.8,2623.5,0.30485]
[1727661260532,1.45996038,2623.6,2623.5,0.30485]
[1727661260732,1.45996038,2623.6,2623.0,0.3867]
[1727661260942,1.45996038,2623.5,2623.0,0.3867]
[1727661261239,1.45996038,2623.4,2623.3,0.30487]
[1727661262022,1.45996038,2623.4,2623.3,10.11687]
[1727661262228,1.94153757,2623.6,2623.3,7.8738244]
[1727661262229,1.45996038,2623.6,2623.3,7.8738244]
[1727661262447,4.66776038,2623.4,2622.8,0.4035]
[1727661262641,4.66776038,2623.4,2622.2,3.6085]
[1727661262642,0.30492,2623.0,2622.2,3.6085]
[1727661262930,1.45996038,2622.7,2622.2,4.87809659]
[1727661263133,1.45996038,2622.6,2622.2,4.87809659]
[1727661263337,1.45996038,2622.5,2622.2,0.4035]
[1727661263539,1.45996038,2622.4,2622.1,3.51281]
[1727661263745,1.45996038,2622.4,2622.2,0.305]
[1727661263931,1.45996038,2622.4,2622.1,3.2078]
[1727661264236,1.45996038,2622.3,2622.1,3.2078]
[1727661264441,1.45996038,2622.5,2622.1,3.51281]
[1727661265236,5.14933757,2622.6,2622.1,3.51281]
[1727661265237,3.2078,2622.6,2622.1,3.51281]
[1727661265637,3.2078,2622.6,2622.1,3.2078]
[1727661265842,3.2078,2622.2,2621.4,3.2078]
[1727661266044,3.2078,2622.0,2621.3,3.2078]
[1727661266240,1.45996038,2622.2,2621.3,3.2078]
[1727661266431,3.2078,2622.0,2621.4,0.30509]
[1727661266633,0.30502,2622.1,2621.4,0.30509]
[1727661266829,3.2078,2621.5,2620.9,0.30515]
[1727661267034,0.30508,2621.6,2621.0,0.30514]
[1727661267035,3.2078,2621.6,2621.0,0.30514]
[1727661267231,3.2078,2621.6,2620.3,2.93]
[1727661267232,3.51288,2621.6,2620.9,0.30515]
[1727661267441,0.3051,2621.4,2620.8,0.30517]
[1727661267635,0.30509,2621.5,2620.8,0.30517]
[1727661267940,3.51288,2621.6,2620.9,0.30515]
[1727661268150,0.30509,2621.5,2620.9,0.30515]
[1727661268336,0.30509,2621.5,2620.8,0.30516]
[1727661268646,3.2078,2621.6,2620.8,0.30516]
[1727661268840,0.30509,2621.5,2620.8,0.30516]
[1727661269244,0.30509,2621.5,2620.7,3.2078]
[1727661269245,0.30509,2621.5,2620.9,0.30516]
[1727661269541,0.30509,2621.5,2620.9,4.2850478]
[1727661269739,0.30509,2621.5,2620.9,0.30516]
[1727661270039,3.2078,2621.6,2621.2,0.30512]
[1727661270252,3.2078,2621.6,2621.1,0.30513]
[1727661270840,3.2078,2621.6,2620.8,4.64985885]
[1727661271355,3.2078,2621.0,2620.8,4.64985885]
[1727661271647,3.2078,2621.0,2620.9,0.30515]
[1727661272044,3.2078,2621.0,2620.9,4.12035]
[1727661272637,3.2078,2621.0,2620.9,4.12036]
[1727661272844,3.2078,2621.3,2621.0,0.30514]
[1727661273836,3.2078,2621.3,2620.9,0.30515]
[1727661274146,3.2078,2621.3,2620.9,4.72936558]
[1727661274534,3.2078,2621.3,2620.9,0.30516]
[1727661274937,3.2078,2621.3,2621.0,0.30515]
[1727661275139,3.2078,2621.3,2620.9,0.30515]
[1727661275853,3.2078,2621.3,2620.8,0.71276]
[1727661276147,3.2078,2621.0,2620.7,0.30518]
[1727661276543,3.2078,2621.0,2620.7,4.68390086]
[1727661276932,3.2078,2621.0,2620.7,0.30518]
[1727661277137,3.2078,2621.0,2620.4,3.2078]
[1727661277538,3.2078,2621.0,2620.5,4.63667896]
[1727661277950,3.2078,2621.0,2620.5,4.33148896]
[1727661278151,3.6145,2621.0,2620.5,4.33148896]
[1727661278340,3.6145,2621.0,2620.7,0.30517]
[1727661279038,3.6145,2621.0,2620.5,4.33148896]
[1727661279039,3.91965,2621.0,2620.5,4.33148896]
[1727661279240,3.2078,2620.7,2620.5,4.33148896]
[1727661279435,3.2078,2620.7,2620.0,0.30525]
[1727661279436,0.30521,2620.5,2620.0,0.30525]
[1727661279650,3.2078,2620.2,2620.0,0.30525]
[1727661279945,3.2078,2620.2,2619.6,4.36721767]
[1727661280147,3.2078,2620.2,2620.0,0.30526]
[1727661280541,3.2078,2620.2,2619.5,3.2078]
[1727661280752,3.2078,2620.2,2620.1,0.30525]
[1727661282040,3.2078,2620.8,2620.1,11.20269633]
[1727661282237,3.2078,2620.8,2620.2,0.4117]
[1727661282844,3.69276,2621.4,2620.2,0.4117]
[1727661282845,3.2078,2621.4,2620.5,3.2078]
[1727661283050,3.2078,2621.4,2620.6,0.411]
[1727661283258,3.2078,2621.4,2621.3,0.30511]
[1727661283460,3.2078,2622.0,2621.3,3.8152]
[1727661283744,2.93,2622.4,2621.7,0.30506]
[1727661283745,3.51282,2622.1,2621.7,0.30506]
[1727661283945,0.30504,2622.0,2621.6,0.30507]
[1727661284350,6.1378,2622.1,2621.2,0.4117]
[1727661284548,3.2078,2621.8,2621.5,0.30508]
[1727661285246,3.2078,2621.8,2621.2,3.6195]
[1727661285454,3.2078,2621.5,2621.2,0.30512]
[1727661285645,3.2078,2621.5,2620.8,3.2078]
[1727661286042,3.2078,2621.5,2621.1,0.30513]
[1727661286354,3.2078,2621.5,2620.8,7.18184739]
[1727661286557,3.2078,2621.5,2621.1,0.30513]
[1727661286743,3.2078,2621.5,2620.8,7.18184739]
[1727661287061,3.2078,2621.5,2621.2,0.30512]
[1727661287448,0.3051,2621.4,2620.8,7.18184739]
[1727661287642,3.2078,2621.5,2621.0,0.30514]
[1727661287849,3.51289,2621.5,2620.8,7.18184739]
[1727661288151,3.51289,2621.5,2621.0,0.30514]
[1727661288355,3.2078,2621.5,2621.0,0.30514]
[1727661288550,0.30513,2621.2,2620.8,7.18184739]
[1727661288753,3.2078,2621.0,2620.8,3.97404739]
[1727661288952,3.2078,2621.0,2620.4,3.613]
[1727661289152,3.2078,2621.0,2620.9,0.30516]
[1727661289754,3.2078,2621.0,2620.5,4.37133494]
[1727661290063,0.3813,2621.2,2620.8,0.30516]
[1727661290255,0.3813,2621.2,2620.5,4.37133494]
[1727661290256,0.68642,2621.2,2620.5,4.37133494]
[1727661290450,0.68642,2621.2,2620.4,3.613]
[1727661290451,0.3813,2621.2,2620.7,0.30518]
[1727661290649,0.3813,2621.2,2620.4,3.613]
[1727661290650,1.08243,2621.2,2620.8,0.30516]
[1727661290948,3.2078,2621.3,2620.7,3.2078]
[1727661291260,3.2078,2621.6,2621.5,0.30509]
[1727661291651,3.2078,2621.6,2621.0,3.2078]
[1727661291959,3.2078,2621.6,2621.5,0.30509]
[1727661292257,3.2078,2621.6,2621.4,0.30509]
[1727661292452,3.2078,2621.6,2621.5,0.30509]
[1727661294456,3.2078,2621.6,2621.2,3.6197]
[1727661294661,3.2078,2621.6,2621.4,0.3051]
[1727661294960,3.2078,2621.6,2621.5,0.30509]
[1727661295153,3.2078,2621.6,2621.2,0.4119]
[1727661295351,3.2078,2621.6,2621.5,0.30509]
[1727661295548,3.2078,2621.6,2621.3,4.1018161]
[1727661295749,3.2078,2621.6,2621.4,0.30509]
[1727661295952,3.2078,2621.6,2620.9,0.3932]
[1727661296153,3.2078,2621.3,2621.2,0.30511]
[1727661296653,3.2078,2621.6,2621.0,4.22202486]
[1727661296855,3.2078,2621.6,2621.4,0.30509]
[1727661297050,3.2078,2621.6,2621.0,7.42982486]
[1727661297256,3.2078,2621.6,2621.4,0.30509]
[1727661297458,3.51288,2621.6,2621.3,0.30511]
[1727661297659,3.2078,2621.6,2621.0,7.42982486]
[1727661298057,3.2078,2621.6,2621.4,0.30509]
[1727661298255,3.2078,2621.6,2621.0,7.42982486]
[1727661298449,3.2078,2621.6,2621.5,0.30509]
[1727661300168,3.5891,2621.9,2621.8,0.30505]
[1727661300460,0.4115,2622.0,2621.8,0.30505]
[1727661300763,0.4115,2622.0,2620.9,3.2078]
[1727661300764,7.0222,2621.9,2620.9,3.2078]
[1727661300959,3.2078,2621.2,2620.7,0.30517]
[1727661301263,3.2078,2621.2,2620.9,0.30515]
[1727661301264,0.374,2621.1,2620.9,0.30515]
[1727661301960,0.374,2621.1,2621.0,0.30515]
[1727661302770,0.374,2621.1,2620.6,4.35578796]
[1727661302965,0.374,2621.1,2620.5,3.2078]
[1727661303265,0.30523,2620.3,2619.9,3.2078]
[1727661303564,3.2078,2620.4,2620.0,0.30526]
[1727661303768,3.2078,2620.7,2620.1,3.2078]
[1727661303959,3.2078,2620.7,2620.4,0.30522]
[1727661304159,3.2078,2620.7,2620.1,3.2078]
[1727661304160,3.2078,2620.7,2620.3,0.30522]
[1727661304370,0.3052,2620.5,2620.2,3.97168843]
[1727661304567,3.51302,2620.4,2619.9,0.30527]
[1727661304863,0.3956,2620.4,2620.0,0.30525]
[1727661305053,0.70082,2620.4,2619.7,3.2078]
[1727661305257,0.70082,2620.4,2619.9,0.30527]
[1727661305564,0.70082,2620.4,2619.7,3.2078]
[1727661305565,0.30526,2620.1,2619.7,3.2078]
[1727661305863,3.51306,2620.1,2619.5,0.30532]
[1727661306063,3.2078,2620.1,2619.4,3.2078]
[1727661306261,3.2078,2620.1,2619.5,4.13704854]
[1727661306462,0.3786,2620.0,2619.4,3.2078]
[1727661306871,0.3786,2620.0,2619.6,0.30531]
[1727661307059,0.3786,2620.0,2619.4,3.2078]
[1727661307260,0.68387,2620.0,2619.5,0.30532]
[1727661307457,0.3786,2620.0,2619.4,3.2078]
[1727661307761,0.3786,2620.0,2619.5,4.14634569]
[1727661308066,3.2078,2620.1,2619.7,0.30529]
[1727661308460,3.2078,2620.1,2619.8,0.30528]
[1727661308963,3.2078,2620.1,2619.9,0.30527]
[1727661309270,1.07942,2620.4,2619.9,0.30527]
[1727661309470,1.07942,2620.4,2620.0,0.30526]
[1727661309765,1.07942,2620.4,2619.8,4.68730386]
[1727661309766,0.30523,2620.3,2619.8,4.68730386]
[1727661309963,0.7742,2620.4,2620.0,0.30526]
[1727661309964,1.07942,2620.4,2620.0,0.30526]
[1727661310267,3.2078,2620.5,2620.1,4.37950214]
[1727661310567,3.2078,2620.9,2620.3,3.2078]
[1727661310955,3.2078,2620.9,2620.6,0.30518]
[1727661311157,3.2078,2620.9,2620.4,4.28568947]
[1727661311372,3.2078,2620.9,2620.5,0.3052]
[1727661311870,3.2078,2620.9,2620.4,4.28568947]
[1727661312568,3.2078,2620.9,2620.6,0.30519]
[1727661312758,3.2078,2620.9,2620.4,4.28568947]
[1727661312960,3.2078,2620.9,2620.2,0.8041]
[1727661313166,3.51296,2620.9,2620.2,0.8041]
[1727661313367,3.51296,2620.9,2620.5,0.3052]
[1727661313563,3.2078,2620.9,2620.4,0.30521]
[1727661313762,3.51296,2620.9,2620.5,0.3052]
[1727661313967,0.30517,2620.8,2620.4,0.30521]
[1727661314475,0.3052,2620.6,2620.3,4.12707715]
[1727661314779,3.2078,2620.6,2619.9,3.2078]
[1727661315067,3.2078,2620.6,2619.6,1.8557]
[1727661315068,3.2078,2620.3,2620.0,0.30526]
[1727661315369,3.2078,2620.3,2620.1,0.30525]
[1727661315762,3.2078,2620.3,2619.8,4.38983818]
[1727661315967,3.2078,2620.3,2620.0,0.30526]
[1727661316163,3.2078,2620.3,2620.0,0.30525]
[1727661316357,3.2078,2620.3,2619.7,3.2078]
[1727661316656,0.30525,2620.1,2619.8,0.30528]
[1727661316861,3.2078,2620.3,2619.7,3.2078]
[1727661317061,3.51303,2620.3,2619.5,0.7981]
[1727661317262,3.51303,2620.3,2620.0,0.30526]
[1727661317457,3.2078,2620.3,2619.6,4.42338548]
[1727661317663,5.19286038,2620.5,2620.3,0.30522]
[1727661317664,0.8029,2620.5,2620.3,0.30522]
[1727661317862,0.3965,2620.5,2620.1,4.42338548]
[1727661318073,2.93,2620.9,2620.8,0.30517]
[1727661318074,0.3931,2620.9,2620.8,0.30517]
[1727661319068,3.51295,2621.0,2620.7,0.30517]
[1727661319274,3.51295,2621.0,2620.4,0.3792]
[1727661319275,3.2078,2621.0,2620.4,0.3792]
[1727661319478,3.2078,2621.0,2620.8,0.30516]
[1727661319674,3.2078,2621.0,2620.9,0.30516]
[1727661319967,3.2078,2621.0,2620.5,4.2157893]
[1727661320172,0.30517,2620.8,2620.5,0.3052]
[1727661320374,0.30517,2620.8,2620.4,0.3792]
[1727661320375,0.30516,2620.9,2620.6,0.30518]
[1727661320877,3.51295,2621.0,2620.7,0.30518]
[1727661321174,3.51295,2621.0,2620.4,0.3792]
[1727661321175,3.2078,2621.0,2620.4,0.3792]
[1727661321377,3.2078,2620.7,2620.4,0.3792]
[1727661321567,3.51299,2620.7,2620.4,0.30522]
[1727661321762,3.51298,2620.7,2620.4,0.30521]
[1727661321964,3.51298,2620.7,2620.3,0.30522]
[1727661321965,3.51299,2620.7,2620.3,0.30522]
[1727661322169,3.2078,2620.7,2619.9,3.2078]
[1727661322473,2.93,2620.8,2619.9,0.30527]
[1727661322474,0.30524,2620.2,2619.9,0.30527]
[1727661322976,6.90087,2620.4,2619.7,3.2078]
[1727661323167,6.90087,2620.4,2619.7,0.30529]
[1727661323168,8.36083038,2620.4,2619.7,0.30529]
[1727661323366,0.30526,2620.0,2619.7,0.30529]
[1727661324377,3.2078,2620.1,2619.3,0.7512]
[1727661324681,3.2078,2620.1,2620.0,0.30526]
[1727661324977,1.94153757,2620.7,2620.0,0.30526]
[1727661324978,0.7782,2620.6,2620.4,0.30522]
[1727661325167,0.7782,2620.6,2620.5,0.3052]
[1727661325364,0.7782,2620.6,2620.4,0.30521]
[1727661325572,0.7782,2620.6,2620.1,0.3817]
[1727661325768,0.7782,2620.6,2620.5,0.3052]
[1727661325985,3.2078,2620.8,2620.6,0.30519]
[1727661326180,3.2078,2620.8,2620.7,0.30518]
[1727661326973,3.2078,2620.8,2620.2,7.55528442]
[1727661327175,3.51298,2620.8,2620.2,4.34748442]
[1727661327478,0.30518,2620.7,2620.4,0.30521]
[1727661327871,3.2078,2620.8,2620.2,4.34748442]
[1727661328072,3.2078,2620.8,2620.1,0.3817]
[1727661328274,3.51298,2620.8,2620.5,0.3052]
[1727661328781,3.51298,2620.8,2620.1,0.3817]
[1727661328782,3.2078,2620.8,2620.1,0.3817]
[1727661329185,3.51297,2620.8,2620.5,0.3052]
[1727661329482,0.30518,2620.7,2620.4,0.30521]
[1727661330274,3.51297,2620.8,2620.5,0.3052]
[1727661330482,3.51297,2620.8,2620.1,0.3817]
[1727661330483,3.2078,2620.8,2620.1,0.3817]
[1727661330674,3.51297,2620.8,2620.1,0.3817]
[1727661330877,0.30518,2620.7,2620.1,0.3817]
[1727661331175,3.2078,2620.8,2620.1,0.3817]
[1727661331385,3.51297,2620.8,2620.5,0.3052]
[1727661331784,3.51297,2620.8,2620.1,0.3817]
[1727661331984,3.51297,2620.8,2620.5,0.3052]
[1727661332183,3.2078,2620.8,2620.2,3.2078]
[1727661332379,3.2078,2620.8,2620.7,0.30518]
[1727661332881,3.2078,2621.1,2621.0,0.30515]
[1727661333076,2.93,2621.5,2620.8,3.2078]
[1727661333077,1.45996038,2621.5,2620.8,3.2078]
[1727661333386,3.2078,2621.4,2620.8,7.17708582]
[1727661333587,3.2078,2621.4,2621.2,0.30512]
[1727661333889,3.2078,2621.4,2620.8,3.9956]
[1727661334192,3.2078,2621.4,2621.3,0.30511]
[1727661334487,3.2078,2621.7,2621.1,3.2078]
[1727661334680,0.30508,2621.6,2621.3,0.3051]
[1727661334879,6.1378,2621.4,2620.8,0.7878]
[1727661335081,6.1378,2621.4,2620.3,0.76307]
[1727661335082,0.30518,2620.8,2620.3,3.2078]
[1727661335280,3.51298,2620.8,2620.4,0.30522]
[1727661335484,0.30518,2620.7,2620.4,0.30522]
[1727661335787,0.30519,2620.7,2620.3,3.51302]
[1727661336088,0.30518,2620.7,2620.4,0.30521]
[1727661336386,3.2078,2620.8,2620.3,3.2078]
[1727661336583,3.2078,2620.8,2620.0,4.0218]
[1727661336795,3.2078,2620.8,2620.4,0.30522]
[1727661336796,0.30519,2620.7,2620.4,0.30522]
[1727661337293,3.2078,2620.8,2620.1,4.22776847]
[1727661337483,3.2078,2620.8,2620.3,3.2078]
[1727661337484,3.51297,2620.8,2620.3,3.2078]
[1727661337682,3.51297,2620.8,2620.5,0.3052]
[1727661338190,3.2078,2620.8,2620.3,3.2078]
[1727661338685,3.2078,2620.8,2620.7,0.30518]
[1727661338880,3.2078,2620.8,2620.6,0.30518]
[1727661340790,3.51297,2620.8,2620.5,0.3052]
[1727661342693,0.3052,2620.6,2620.3,0.30522]